Cogmind - Beta 16 @@@ ROGUE MODE // 2025.11.20 @ 23:28:38 Player: Runia Result: Destroyed by G-47 Trooper with Particle Gun Performance ------------- Evolutions (0) 0 Regions Visited (1) 200 Robots Destroyed (23) 115 Value Destroyed (520) 520 Prototype IDs (0) 0 Alien Tech Used (0) 0 Bonus (0) 0 TOTAL SCORE: 835 Bonus ------- None Cogmind --------- Core Integrity 0/250 Matter 260/300 Energy 239/250 System Corruption 0% Temperature Cool (36) Movement Treading (240) Ox1 Location -10/Materials Parts ------- > --- POWER (1) -------- Ion Engine > --- PROPULSION (2) --- Light Treads Wheel > --- UTILITY (2) ------ Improved Heat Sink Large Storage Unit > --- WEAPON (2) ------- Medium Laser Medium Laser > --- INVENTORY (15) --- Wheel Compact Wheel Structural Scanner Salvage Targeting Computer Light EM Pulse Cannon Particle Cannon Particle Cannon Particle Cannon Particle Cannon Mini Grenade Launcher Mini Grenade Launcher Hammer Peak State ------------ > --- POWER ------------ Ion Engine > --- PROPULSION ------- Light Treads Wheel > --- UTILITY ---------- Improved Heat Sink Large Storage Unit > --- WEAPON ----------- Assault Rifle Assault Rifle > --- INVENTORY -------- Light Treads Wheel Compact Wheel Structural Scanner Salvage Targeting Computer Small Laser Light EM Pulse Cannon Particle Cannon Particle Cannon Particle Cannon Particle Cannon Mini Grenade Launcher Mini Grenade Launcher [Rating: 11] Favorites ----------- Power Ion Engine Engine Ion Engine Propulsion Light Treads Treads Light Treads Leg Aluminum Leg Wheel Wheel Utility Large Storage Unit Device Improved Heat Sink Storage Large Storage Unit Weapon Assault Rifle Energy Gun Medium Laser Ballistic Gun Assault Rifle Build | -11 -10 ------- Run | Yrd Mat Slots Evolved . | . . Power . | . . Propulsion . | . . Utility . | . . Weapon . | . . Parts Attached 12 | 2 10 Power 2 | . 2 Engine 2 | . 2 Core . | . . Reactor . | . . Propulsion 4 | 2 2 Treads 2 | 1 1 Leg . | . . Wheel 2 | 1 1 Hover . | . . Flight . | . . Utility 2 | . 2 Device 1 | . 1 Storage 1 | . 1 Processor . | . . Hackware . | . . Protection . | . . Artifact . | . . Weapon 4 | . 4 Energy Gun 2 | . 2 Energy Cannon . | . . Ballistic Gun 2 | . 2 Ballistic Cannon . | . . Launcher . | . . Special Weapon . | . . Impact Weapon . | . . Slashing Weapon . | . . Piercing Weapon . | . . Special Melee Weapon . | . . Unidentified Prototypes . | . . Parts Lost 5 | . 5 Power 1 | . 1 Propulsion 2 | . 2 Utility . | . . Weapon 2 | . 2 Highest Loss Streak 3 | . 3 To Critical Strikes . | . . Average Backups 7 | 6 7 Power . | 1 . Propulsion 2 | 4 2 Utility . | . . Weapon 4 | 1 4 Tool/Special . | . . Unused Backups 12 | . 12 Power . | . . Propulsion 1 | . 1 Utility 3 | . 3 Weapon 8 | . 8 Tool/Special . | . . Average Slot Usage (%) 95 | . 95 Engine 13 | . 13 Treads 14 | . 14 Wheel 13 | . 13 Device 11 | . 11 Storage 14 | . 14 Energy Gun 4 | . 4 Ballistic Gun 22 | . 22 Peak Build Rating 11 | 6 11 Average Rating 9 | 5 9 On Entrance 6 | 6 6 Avg Prop Armor Cover (%) 10 | . 10 Naked Turns . | . . Heaviest Build 32 | 12 32 Greatest Support 20 | 10 20 Greatest Overweight (x) 3 | 1 3 Average Overweight (x) 1 | 1 1 Largest Inventory Capacity 15 | 8 15 Average Capacity 14 | 8 14 Most Carried 15 | 6 15 Average Carried 7 | 5 7 Final Capacity 15 | 8 15 Final Carried 12 | 4 12 Class Distribution -------------------- 100% | Mutant Dominant Class ---------------- Mutant | -10/Materials Resources | -11 -10 ----------- Run | Yrd Mat Matter Collected 646 | 200 446 Remotely . | . . Salvage Created 765 | . 765 Parts 44 | . 44 Haulers Intercepted . | . . Recyclers Shooed 2 | . 2 Parts Field Recycled . | . . Retrieved Matter . | . . Parts Self-Destructed . | . . Prevented . | . . Parts Restored . | . . Kills | -11 -10 ------- Run | Yrd Mat Combat Hostiles Destroyed 18 | . 18 Guns 18 | . 18 Classes Destroyed 6 | . 6 Worker 1 | . 1 Builder 1 | . 1 Tunneler 2 | . 2 Recycler 1 | . 1 Swarmer 6 | . 6 Grunt 12 | . 12 Best Kill Streak 6 | . 6 Combat Bots Only 4 | . 4 Max Kills in Single Turn 2 | . 2 Gunslinging 1 | . 1 Exploded . | . . Melee . | . . Uniques/NPCs Destroyed . | . . Combat | -11 -10 -------- Run | Yrd Mat Hostile Shots Fired 118 | . 118 Missed 39 | . 39 Hits 79 | . 79 Projectile 79 | . 79 Critical Strikes 1 | . 1 Damage Taken 867 | . 867 Core 258 | . 258 Absorbed by Shields . | . . Core Remaining (%) 100 | 100 . Volleys Fired 79 | . 79 Largest 2 | . 2 Hottest 100 | . 100 Shots Fired 158 | . 158 Gun 158 | . 158 Cannon . | . . Launcher . | . . Special . | . . Kinetic 112 | . 112 Thermal 46 | . 46 Explosive . | . . Electromagnetic . | . . Robot Hit Streak 9 | . 9 Robot Miss Streak 6 | . 6 Penetration Max . | . . Secondary Targets 3 | . 3 Max Gunslinging Chain 1 | . 1 Shots Hit Robots 97 | . 97 Core Hits 43 | . 43 Critical Kills . | . . Critical Parts Destroyed 2 | . 2 Critical Strikes 3 | . 3 Burn 1 | . 1 Destroy 2 | . 2 Melee Attacks . | . . Impact . | . . Slashing . | . . Piercing . | . . Sneak Attacks . | . . Combat Hostiles . | . . Follow-up Attacks . | . . Damage Inflicted 1309 | . 1309 Guns 1309 | . 1309 Cannons . | . . Explosions . | . . Melee . | . . Ramming . | . . Kinetic 882 | . 882 Thermal 427 | . 427 Explosive . | . . Electromagnetic . | . . Impact . | . . Slashing . | . . Piercing . | . . Highest Corruption . | . . Average Corruption . | . . Corruption Purged . | . . Corruption Blocked . | . . Overload Shots . | . . Overflow Damage . | . . Projectiles . | . . Explosions . | . . Melee . | . . Knockbacks . | . . Impact . | . . Kinetic . | . . Secondary . | . . Self-Inflicted Damage . | . . Shots . | . . Rammed . | . . Targets Rammed . | . . Kicked . | . . Crushed . | . . Highest Temperature 33 | . 33 Average Temperature 13 | . 13 Received Heat Transfer 381 | . 381 Siege Activations . | . . Martial Activations . | . . Shielding Activations . | . . Robots Disrupted . | . . Combat Hostiles . | . . Robots Corrupted . | . . Combat Hostiles . | . . Parts Fried . | . . Impact Corruptions . | . . Robots Melted . | . . Combat Hostiles . | . . Parts Melted 4 | . 4 Heat Transferred 1332 | . 1332 Parts Sabotaged . | . . Parts Stolen . | . . Parts Stripped . | . . Power Chain Reactions . | . . Alert | -11 -10 ------- Run | Yrd Mat Maximum Alert Level . | . . Low Security (%) 100 | 100 100 Level 1 . | . . Level 2 . | . . Level 3 . | . . Level 4 . | . . Level 5 . | . . High Security . | . . Max Security . | . . Peak Influence 166 | . 166 Initial . | . . Average 96 | . 97 Influence Increases 562 | . 562 Destroy 0b10 Robot/C 360 | . 360 Destroy 0b10 Robot/NC 25 | . 25 Destroy Leader 80 | . 80 Successful Hack 22 | . 22 Select Force Hacks 60 | . 60 Lose Combat Pursuer 15 | . 15 Influence Decreases 400 | . 400 Time Decay 350 | . 350 Lost Part 50 | . 50 Squads Dispatched 4 | . 4 Investigation 4 | . 4 Extermination . | . . Reinforcement . | . . Assault . | . . Garrison . | . . Intercept . | . . Searches Triggered . | . . Construction Impeded . | . . Haulers Reinforced . | . . Active Scanning Responses . | . . Cargo Convoy Interrupts . | . . Stealth | -11 -10 --------- Run | Yrd Mat Distress Signals 1 | . 1 Communications Jammed . | . . Distress Signals . | . . Times Spotted 27 | . 27 Peak Tracking Total 4 | . 4 Tactical Retreats 1 | . 1 Traps | -11 -10 ------- Run | Yrd Mat Traps Triggered 4 | . 4 Indirectly . | . . Trap Hack Attempts . | . . Triggered . | . . Disarmed . | . . Reprogrammed . | . . Reused . | . . Traps Extracted . | . . Installed . | . . Triggered . | . . Machines | -11 -10 ---------- Run | Yrd Mat Machines Disabled . | . . Max in Single Turn . | . . Machines Repaired . | . . Machines Dismantled . | . . Machines Sabotaged . | . . Overloaded Fab Kills . | . . Hacking | -11 -10 --------- Run | Yrd Mat Machines Accessed 8 | . 8 Terminals 6 | . 6 Fabricators . | . . Repair Stations . | . . Recycling Units 2 | . 2 Scanalyzers . | . . Garrison Access . | . . Total Hacks 17 | . 17 Successful 10 | . 10 Failed 7 | . 7 Catastrophic 1 | . 1 Database Lockouts . | . . Manual 15 | . 15 Terminals 15 | . 15 Fabricators . | . . Repair Stations . | . . Recycling Units 2 | . 2 Scanalyzers . | . . Garrison Access . | . . Terminal Hacks 2 | . 2 Hauler Manifests 2 | . 2 Fabricator Hacks . | . . Repair Station Hacks . | . . Recycling Unit Hacks . | . . Scanalyzer . | . . Garrison Access Hacks . | . . Unauthorized Hacks 8 | . 8 Terminals 6 | . 6 Skim 6 | . 6 Fabricators . | . . Repair Stations . | . . Recycling Units 2 | . 2 Tunnel 2 | . 2 Scanalyzers . | . . Garrison Access . | . . Data Cores Recovered . | . . Used . | . . Hacking Detections 5 | . 5 Full Trace Events 2 | . 2 Feedback Events . | . . Feedback Blocked . | . . Robot Schematics Acquired . | . . Robots Built . | . . Authchips . | . . Time . | . . Total Robot Build Rating . | . . Part Schematics Acquired . | . . Parts Built . | . . Authchips . | . . Time . | . . Total Part Build Rating . | . . Part Studies Acquired . | . . Parts Repaired . | . . Time . | . . Parts Recycled . | . . Recycled Matter . | . . Retrieved Matter . | . . Retrieved Components . | . . Parts Scanalyzed . | . . Part Schematics Acquired . | . . Parts Damaged . | . . Bothacking | -11 -10 ------------ Run | Yrd Mat Used RIF Installer . | . . Robots Hacked . | . . Non-combat . | . . Combat . | . . Robot Hacks Applied . | . . Relay Couplers Released . | . . Fabnet Peak Effective % . | . . Robots Rewired . | . . Allies Hacked . | . . Hacks Repelled . | . . Allies | -11 -10 -------- Run | Yrd Mat Total Allies . | . . Largest Group . | . . Highest-Rated Group . | . . Highest-Rated Ally . | . . Total Orders . | . . Ally Attacks . | . . Total Damage . | . . Kills . | . . Allies Corrupted . | . . Allies Melted . | . . Intel | -11 -10 ------- Run | Yrd Mat Active Infowar (turns) . | . . Robot Analysis Total . | . . Derelict Logs Recovered . | . . Drone Launches . | . . Drone Recoveries . | . . Exploration | -11 -10 ------------- Run | Yrd Mat Turns Passed 793 | 5 788 Spaces Moved 405 | 3 402 Core . | . . Treads 38 | . 38 Legs . | . . Wheels 367 | 3 364 Hover . | . . Flight . | . . Fastest Speed 95 | 95 95 Average Speed 121 | 95 121 Slowest Speed 240 | 95 240 Overloaded Moves . | . . Propulsion Burnouts . | . . Robots Hopped . | . . Potential Cave-ins . | . . Cave-ins Triggered . | . . Exploration Rate (%) 39 | 1 78 Regions Visited 1 Branch Regions . Pre-discovered Areas 2 | . 2 Known Exits Taken . | . . Unknown Exits Taken 1 | 1 . Scrap Searched . | . . Spaces Dug . | . . Terrain Destroyed . | . . Melee . | . . Projectile . | . . AOE . | . . Terrain Rammed . | . . Walls Destroyed . | . . Machines Disabled . | . . Actions | -11 -10 --------- Run | Yrd Mat Total 546 | 6 540 Wait 27 | . 27 Move 404 | 2 402 Hop . | . . Pick Up 14 | . 14 Fast Attach 11 | . 11 Attach 6 | 2 4 Detach . | . . Swap . | . . Drop 5 | 2 3 Fire 79 | . 79 Melee . | . . Ram . | . . Kick . | . . Crush . | . . Escape Stasis . | . . Rewire . | . . Trap . | . . Miscellaneous . | . . Route ------- -11/Scrapyard -10/Materials (discovered 2 exits: [*Mat] / [*Min]) History --------- Turn | Location | Event 4 | -11/Scrapyard | Discovered new exit (range 0) 6 | -11/Scrapyard | Entered Materials 309 | -10/Materials | Build established: Mutant 360 | -10/Materials | Discovered new exit (range 16) 506 | -10/Materials | Derelicts attacked the area 522 | -10/Materials | Discovered new exit (range 11) 676 | -10/Materials | Core integrity fell below 50% 704 | -10/Materials | Lost 3 parts (1n2w) 740 | -10/Materials | Core integrity fell below 20% 794 | -10/Materials | Destroyed by G-47 Trooper with Particle Gun Last Messages --------------- 00746_ Ion Engine severed. 00748_ Acquired Ion Engine. 00749_ K-01 Serf collects debris. 00750_ Triggered Blade Trap. 00750_ Massive razor-sharp blades shoot up from within the floor. 00750_ Lgt. Treads severed. 00750_ Med. Laser severed. 00752_ K-01 Serf collects debris. 00752_ Acquired Med. Laser. 00753_ U-05 Engineer lays Concrete. 00755_ K-01 Serf cleans the Matter Pump. 00755_ Acquired Lgt. Treads. 00758_ Connecting with Terminal... >>Trojan(Skim) Trojan loaded successfully. Testing... Terminal linked with 3 systems. Please expand to 1 more system! 00759_ K-01 Serf collects debris. 00793_ G-34 Mercenary destroyed. Map ----- +----------------------------------------------------+ | ==! ## """ ### ## ]]#????? | | ==! #######+## ] #????? | | #????? | | " ]]#????? | | %[ #????? | | ### # !!#????? | | ## ##?# ###########????? | | ## #??#! !#??????????????? | | + #??##!!!!##??????????????? | | # #???######???????????????? | | # #????????????????????????? | | # #????????????????????????? | | # #????????????????????????? | | ## #????????????????????????? | | ?# #????????????????????????? | | ## ##???????????????????????? | | # #???????????????????????? | | # #???????????????????????? | | + T #?????????????????####### | | # ################### # | | # *= !=|=%[^ T # # | | ## ###########* # # | | ?# #?????????# + = # | | ?# % #?????????#%*""" #g%* # | | ?# ?????????# """ # [ # | | ?# ##????????# """ #@ # | | ?# #???????? /|= ####### | | ?# #??????? #%= #?????? | | ?# #?????? ## ### #?????? | | ?# #?????" ??# #?# #?????? | | ?# #???? ???# #?# #?????? | | ?## ##????###???# #?# #?????? | | ??# #???????????? #?# +?????? | | ??? ????????????? #?# #?????? | | ??? ????????????? #?# #?????? | | ??? ????????????? ?? ?????? | | ????????????????? ?? ?????? | | ????????????????? ?? ??????? | | ???????????????????? ??????? | | ????????????????????? ??????? | | ??????????????????????????????? | | ??????????????????????????????? | | ??????????????????????????????? | | ??????????????????????????????? | | ??????????????????????????????? | | ??????????????????????????????? | | ??????????????????????????????? | | ??????????????????????????????? | | ??????????????????????????????? | | ??????????????????????????????? | +----------------------------------------------------+ Best States ------------- Heat Dissipation 39 Energy Generation 10 Energy Capacity 250 Matter Stores 300 Matter Capacity 300 Sight Range 16 Terrain Scan Density 10 Evasion (%) 41 Recoil Reduction 1 Item Schematics ----------------- None Robot Schematics ------------------ None Fabricated ------------ Nothing Repaired ---------- Nothing Studied --------- None Alien Tech Used ----------------- None Achievements -------------- None Challenges ------------ None Game ------ Seed SigixCargoJammer Manual? 0 Play Time 00:10:21 Cumulative 887.4 hours Start 2025.11.20 @ 23:23:15 End 2025.11.20 @ 23:28:38 Sessions 1 Manual Loads 0 Difficulty Rogue Special Mode None Game No. 755 Rogue 755 Adventurer 0 Explorer 0 Win Type - Total 47 Types 15/8/11/1/1/1/7/1/1/1 Lore% 87 Gallery% 85 Achievement% 61 Wizard Run 0 Options --------- Layout 0 ASCII 0 Keyboard 0 Movement Mouse Keybinds 1 Fullscreen 2 Font 24/Smallcaps Map View 76x50 Zoom Use 0% Tactical HUD 1 Map Filters NONE Filters NONE Steam 1 RUN: 774a5b28-3c00-4419-8678-33dcbcba3a10